fUST/lending_fUST_20260228
["ID","MTS","AMOUNT","RATE_DAILY","PERIOD"]
[406910413,1772270996789,-151.0,0.00041235,30]
[406910414,1772270996831,-151.0,0.00041235,30]
[406910415,1772270996871,-151.0,0.00041235,30]
[406910416,1772270996912,-151.0,0.00041235,30]
[406910417,1772270996954,-151.0,0.00041235,30]
[406910418,1772270996993,-151.0,0.00041235,30]
[406910419,1772270997031,-151.0,0.00041235,30]
[406910420,1772270997071,-151.0,0.00041235,30]
[406910421,1772270997111,-151.0,0.00041235,30]
[406910422,1772270997154,-151.0,0.00041235,30]
[406910423,1772270997211,-151.0,0.00041235,30]
[406910424,1772270997255,-151.0,0.00041235,30]
[406910425,1772270997295,-151.0,0.00041235,30]
[406910426,1772270997335,-32524.78544481,0.00041236,120]
[406910427,1772270997379,-150.51,0.00041258,120]
[406910428,1772270997420,-671.91459268,0.00041295,120]
[406910429,1772270997461,-151.0,0.000413,120]
[406910430,1772270997507,-324.6826,0.00041311,30]
[406910431,1772270997549,-150.51,0.00041358,120]
[406910432,1772270997590,-200.0,0.00041386,120]
[406910433,1772270997631,-151.0,0.00041429,120]
[406910434,1772270997671,-151.0,0.00041429,120]
[406910435,1772270997713,-200.0,0.00041435,120]
[406910436,1772270997755,-151.0,0.00041441,120]
[406910437,1772270997795,-151.0,0.00041441,120]
[406910438,1772270997836,-150.51,0.00041458,120]
[406910439,1772270997880,-599.3,0.000415,120]
[406910440,1772270997923,-174.28,0.000415,120]
[406910441,1772270997966,-200.0,0.00041505,120]
[406910442,1772270998008,-150.51,0.00041558,120]
[406910443,1772270998051,-1081.42,0.00041591,120]
[406910444,1772270998094,-200.0,0.00041609,120]
[406910445,1772270998138,-150.51,0.00041658,120]
[406910446,1772270998184,-200.0,0.00041681,120]
[406910447,1772270998227,-200.0,0.0004171,47]
[406910448,1772270998269,-200.0,0.00041736,120]
[406910449,1772270998312,-150.51,0.00041758,120]
[406910450,1772270998357,-150.51,0.00041858,120]
[406910451,1772270998399,-452.35,0.000419,120]
[406910452,1772270998443,-450.9,0.000419,120]
[406910453,1772270998485,-1000.0,0.000419,30]
[406910454,1772270998528,-1000.0,0.000419,30]
[406910455,1772270998573,-150.51,0.00041958,120]
[406910456,1772270998615,-388.97,0.00041962,30]
[406910457,1772270998659,-200.0,0.00041976,120]
[406910458,1772270998700,-168.0,0.00042,30]
[406910459,1772270998743,-2500.0,0.00042,120]
[406910460,1772270998783,-3739.90433026,0.00042,120]
[406910461,1772270998824,-1002.0,0.00042,30]
[406910462,1772270998865,-2538.98,0.00042,120]
[406910463,1772270998906,-629.28,0.00042,120]
[406910464,1772270998947,-1000.0,0.00042,120]
[406910465,1772270998985,-7000.0,0.00042,120]
[406910466,1772270999024,-2491.18,0.00042,30]
[406910467,1772270999065,-325.0,0.00042,120]
[406910468,1772270999104,-198.0,0.00042,120]
[406910469,1772270999146,-3576.74,0.00042,30]
[406910470,1772270999190,-183.0,0.00042,120]
[406910471,1772270999233,-725.66,0.00042,120]
[406910472,1772270999273,-626.25,0.00042,120]
[406910473,1772270999315,-14987.06,0.00042,120]
[406910474,1772270999358,-150.51,0.00042058,120]
[406910475,1772270999403,-3656.13723618,0.00042103,30]
[406910476,1772270999448,-200.0,0.00042112,120]
[406910477,1772270999491,-200.0,0.00042129,120]
[406910478,1772270999538,-150.51,0.00042158,120]
[406910479,1772270999580,-200.0,0.00042161,120]
[406910480,1772270999623,-1081.42,0.00042189,120]
[406910481,1772270999879,-200.0,0.00042193,120]
[406910482,1772270999925,-150.51,0.00042258,120]
[406910483,1772270999971,-150.51,0.00042358,120]
[406910484,1772271000015,-200.0,0.00042385,120]
[406910485,1772271000058,-286.49,0.00042429,120]
[406910486,1772271000101,-985578.61011389,0.0004244,30]
[406910487,1772271007797,152.0,9.5e-05,2]
[406910488,1772271008193,-1321.02,0.0003896,30]
[406910489,1772271008241,-435.0,0.00039,90]
[406910490,1772271008284,-435.0,0.0003958,90]
[406910491,1772271008327,-435.0,0.00039854,90]
[406910492,1772271008374,-435.0,0.00040128,90]
[406910493,1772271008430,-435.0,0.00040402,90]
[406910494,1772271008476,-1981.53,0.00041201,30]
[406910495,1772271008521,-435.0,0.00041272,90]
[406910496,1772271008567,-254.0,0.0004171,47]
[406910497,1772271008611,-27647.50208611,0.0004244,30]
[406910498,1772271008655,-285.0,0.0004244,60]
[406910499,1772271008699,-150.51,0.00042458,120]
[406910500,1772271008743,-999.0,0.00042465,120]
[406910501,1772271008787,-1000.0,0.000425,120]
[406910502,1772271008829,-660.74,0.000425,120]
[406910503,1772271008871,-9036.20489577,0.000425,120]
[406910504,1772271008912,-192.15,0.000425,120]
[406910505,1772271008954,-200.0,0.00042512,120]
[406910506,1772271008996,-200.0,0.00042513,120]
[406910507,1772271009039,-200.0,0.00042517,120]
[406910508,1772271009083,-150.51,0.00042558,120]
[406910509,1772271009132,-150.51,0.00042658,120]
[406910510,1772271009179,-1002.78557,0.000427,120]
[406910511,1772271009229,-200.0,0.00042719,120]
[406910512,1772271009277,-200.0,0.00042734,120]
[406910513,1772271009320,-200.0,0.0004274,120]
[406910514,1772271009364,-5237.56924786,0.00042741,30]
[406910515,1772271009409,-150.51,0.00042758,120]
[406910516,1772271009452,-200.0,0.0004278,120]
[406910517,1772271009496,-1081.42,0.00042788,120]
[406910518,1772271009541,-200.0,0.00042795,120]
[406910519,1772271009584,-200.0,0.0004282,120]
[406910520,1772271009627,-2485.41000979,0.00042841,30]
[406910521,1772271009672,-150.51,0.00042858,120]
[406910522,1772271009713,-170.0,0.00042877,120]
[406910523,1772271009755,-150.51,0.00042958,120]
[406910524,1772271009797,-506.78,0.00043,120]
[406910525,1772271009838,-20000.0,0.00043,120]
[406910526,1772271009884,-2500.0,0.00043,120]
[406910527,1772271009936,-693.78,0.00043,120]
[406910528,1772271009979,-8000.0,0.00043,120]
[406910529,1772271010021,-201.75,0.00043,120]
[406910530,1772271010068,-150.51,0.00043058,120]
[406910531,1772271010112,-200.0,0.00043074,120]
[406910532,1772271010159,-150.51,0.00043158,120]
[406910533,1772271010203,-200.0,0.00043232,120]
[406910534,1772271010246,-2819.34,0.0004324,120]
[406910535,1772271010290,-150.51,0.00043258,120]
[406910536,1772271010333,-200.0,0.00043271,120]
[406910537,1772271010377,-704.60232962,0.00043295,120]
[406910538,1772271010423,-435.0,0.00043335,90]
[406910539,1772271010473,-447.0,0.00043335,90]
[406910540,1772271010521,-150.51,0.00043358,120]
[406910541,1772271010564,-1081.42,0.00043386,120]
[406910542,1772271010606,-2642.05,0.00043442,30]
[406910543,1772271010649,-150.51,0.00043458,120]
[406910544,1772271010694,-3656.13723618,0.00043486,30]
[406910545,1772271010736,-728.47,0.000435,120]
[406910546,1772271010779,-211.84,0.000435,120]
[406910547,1772271010819,-4895351.88862467,0.000435,120]
[406910550,1772271022787,-762.799116,0.00022253,30]
[406910551,1772271022858,-166.0,0.00029014,32]
[406910552,1772271022910,-1779.864604,0.0002967,30]
[406910553,1772271022961,-180.0,0.00031205,44]
[406910554,1772271023007,-177.0,0.00034493,69]
[406910555,1772271023059,-160.0,0.00039973,120]
[406910556,1772271023102,-418.79,0.0004,120]
[406910557,1772271023163,-439.73,0.000405,120]
[406910558,1772271023209,-461.71,0.00041,120]
[406910559,1772271023257,-484.8,0.000415,120]
[406910560,1772271023301,-3219.06,0.00042,30]
[406910561,1772271023349,-509.04,0.00042,120]
[406910562,1772271023392,-151.0,0.00042439,30]
[406910563,1772271023435,-196.36275568,0.00042439,30]
[406910564,1772271023481,-2000.0,0.00042439,30]
[406910565,1772271023526,-2000.0,0.00042439,30]
[406910566,1772271023572,-500.0,0.00042439,30]
[406910567,1772271023619,-581.70512794,0.00042439,30]
[406910568,1772271023667,-2000.0,0.00042439,30]
[406910569,1772271023711,-2000.0,0.00042439,30]
[406910570,1772271024299,-2000.0,0.00042439,30]
[406910571,1772271024381,-151.0,0.00042439,30]
[406910572,1772271024425,-2000.0,0.00042439,30]
[406910573,1772271024469,-1257.97645777,0.00042439,30]
[406910574,1772271024515,-156.587,0.00042439,30]
[406910575,1772271024558,-500.0,0.00042439,30]
[406910576,1772271024599,-2074.0,0.00042439,30]
[406910577,1772271024643,-162.380719,0.00042439,30]
[406910578,1772271024685,-500.0,0.00042439,30]
[406910579,1772271024726,-2150.738,0.00042439,30]
[406910580,1772271024770,-168.3888056,0.00042439,30]
[406910581,1772271024813,-2230.315306,0.00042439,30]
[406910582,1772271024855,-500.0,0.00042439,30]
[406910583,1772271024899,-174.61919141,0.00042439,30]
[406910584,1772271024941,-2312.83697232,0.00042439,30]
[406910585,1772271024985,-500.0,0.00042439,30]
[406910586,1772271025025,-250.0,0.00042439,30]
[406910587,1772271025068,-181.08010149,0.00042439,30]
[406910588,1772271025108,-2398.4119403,0.00042439,30]
[406910589,1772271025152,-500.0,0.00042439,30]
[406910590,1772271025195,-250.0,0.00042439,30]
[406910591,1772271025237,-187.78006525,0.00042439,30]
[406910592,1772271025279,-1226.11154004,0.00042439,30]
[406910593,1772271025319,-500.0,0.00042439,30]
[406910594,1772271025360,-250.0,0.00042439,30]
[406910595,1772271025406,-194.72792766,0.00042439,30]
[406910596,1772271025451,-500.0,0.00042439,30]
[406910597,1772271025496,-250.0,0.00042439,30]
[406910598,1772271025541,-201.93286099,0.00042439,30]
[406910599,1772271025583,-250.0,0.00042439,30]
[406910600,1772271025627,-250.0,0.00042439,30]
[406910601,1772271025675,-209.40437684,0.00042439,30]
[406910602,1772271025719,-250.0,0.00042439,30]
[406910603,1772271025762,-500.0,0.00042439,30]
[406910604,1772271025806,-250.0,0.00042439,30]
[406910605,1772271025847,-250.0,0.00042439,30]
[406910606,1772271025890,-217.15233878,0.00042439,30]
[406910607,1772271025933,-500.0,0.00042439,30]
[406910608,1772271025974,-250.0,0.00042439,30]
[406910609,1772271026016,-250.0,0.00042439,30]
[406910610,1772271026059,-225.18697532,0.00042439,30]
[406910611,1772271026100,-500.0,0.00042439,30]
[406910612,1772271026142,-166.0,0.0004244,30]
[406910613,1772271026189,-534.49,0.000425,120]
[406910614,1772271026231,-281.53,0.00042801,120]
[406910615,1772271026283,-656.91,0.00042955,30]
[406910616,1772271026331,-561.22,0.00043,120]
[406910617,1772271026375,-840156.0296974,0.000435,120]
[406910618,1772271026420,-854.5,0.000435,60]
[406910619,1772271026465,-589.28,0.000435,120]
[406910620,1772271026510,-151.33353311,0.00043537,60]
[406910621,1772271026560,-150.51,0.00043558,120]
[406910622,1772271026607,-150.51,0.00043658,120]
[406910623,1772271026652,-387.38106,0.000437,120]
[406910624,1772271026695,-200.0,0.000437,120]
[406910625,1772271026739,-200.0,0.00043709,120]
[406910626,1772271026783,-150.51,0.00043758,120]
[406910627,1772271026825,-1000.0,0.000438,90]
[406910628,1772271026867,-1000.0,0.000438,90]
[406910629,1772271026909,-100767.81339047,0.000438,120]
[406910630,1772271026953,-155569.37334806,0.000438,30]
[406910631,1772271026998,-5027.8,0.00043835,120]
[406910632,1772271027041,-151.627826,0.00043836,120]
[406910633,1772271027082,-151.627826,0.00043836,120]
[406910634,1772271027122,-151.627826,0.00043836,120]
[406910635,1772271027166,-151.627826,0.00043836,120]
[406910636,1772271027213,-151.627826,0.00043836,120]
[406910637,1772271027260,-151.627826,0.00043836,120]
[406910638,1772271027307,-151.627826,0.00043836,120]
[406910639,1772271027356,-151.627826,0.00043836,120]
[406910640,1772271027402,-151.627826,0.00043836,120]
[406910641,1772271027448,-151.627826,0.00043836,120]
[406910642,1772271027492,-151.627826,0.00043836,120]
[406910643,1772271027537,-151.627826,0.00043836,120]
[406910644,1772271027579,-151.627826,0.00043836,120]
[406910645,1772271027625,-151.627826,0.00043836,120]
[406910646,1772271027668,-151.627826,0.00043836,120]
[406910647,1772271027713,-151.627826,0.00043836,120]
[406910648,1772271027758,-151.627826,0.00043836,120]
[406910649,1772271027802,-151.627826,0.00043836,120]
[406910650,1772271027845,-151.627826,0.00043836,120]
[406910651,1772271027888,-151.627818,0.00043836,120]
[406910652,1772271027937,-200.0,0.00043854,120]
[406910653,1772271027981,-150.51,0.00043858,120]
[406910654,1772271028027,-428.56612737,0.00043934,30]
[406910655,1772271028070,-200.0,0.00043938,120]
[406910656,1772271028114,-150.51,0.00043958,120]
[406910657,1772271028158,-1000.0,0.00043966,120]
[406910658,1772271028202,-1081.42,0.00043984,120]
[406910659,1772271028244,-10000.0,0.00044,120]
[406910660,1772271028288,-20000.0,0.00044,120]
[406910661,1772271028331,-2500.0,0.00044,120]
[406910662,1772271028375,-3000.0,0.00044,120]
[406910663,1772271028424,-618.74,0.00044,120]
[406910664,1772271028468,-150.51,0.00044058,120]
[406910665,1772271028508,-725.66,0.000441,120]
[406910666,1772271028549,-14987.06,0.000441,120]
[406910667,1772271028591,-626.25,0.000441,120]
[406910668,1772271028633,-151.33353311,0.00044129,60]
[406910669,1772271028677,-150.51,0.00044158,120]
[406910670,1772271028721,-150.51,0.00044258,120]
[406910671,1772271028937,-150.51,0.00044358,120]
[406910672,1772271028980,-361.88,0.000444,90]
[406910673,1772271029020,-360.72,0.000444,120]
[406910674,1772271029060,-469.24,0.000444,90]
[406910675,1772271029101,-217.9171,0.000444,120]
[406910676,1772271029141,-210.35,0.000444,120]
[406910677,1772271029185,-395.6038,0.000444,120]
[406910678,1772271029227,-211.03,0.000444,120]
[406910679,1772271029270,-211.03,0.000444,90]
[406910680,1772271029314,-210.35,0.000444,90]
[406910681,1772271029359,-1013226.1122,0.0004444,30]
[406910682,1772271029410,-150.51,0.00044458,120]
[406910683,1772271029465,-649.67,0.000445,120]
[406910684,1772271029510,-150.51,0.00044558,120]
[406910685,1772271029556,-1081.42,0.00044583,120]
[406910686,1772271029600,-325.80184337,0.00044593,30]
[406910687,1772271029646,-150.51,0.00044658,120]
[406910688,1772271029688,-1002.78557,0.000447,120]
[406910689,1772271029730,-338.3,0.00044712,120]
[406910690,1772271029772,-150.51,0.00044758,120]
[406910691,1772271029813,-150.51,0.00044858,120]
[406910692,1772271029855,-3683.83809471,0.00044869,30]
[406910693,1772271029897,-247.88,0.00044887,90]
[406910694,1772271029941,-251.2999404,0.000449,120]
[406910695,1772271029983,-251.41509924,0.000449,120]
[406910696,1772271030028,-5482.47464585,0.00044938,30]
[406910697,1772271030072,-3885.28737957,0.00044957,30]
[406910698,1772271030116,-150.51,0.00044958,120]
[406910699,1772271030158,-151.33353311,0.00044977,60]
[406910700,1772271030201,-500.0,0.00045,120]
[406910701,1772271030244,-318.86417928,0.00045,120]
[406910702,1772271030285,-471.9876689,0.00045,120]
[406910703,1772271030326,-510.76613635,0.00045,120]
[406910704,1772271030372,-187.70666505,0.00045,120]
[406910705,1772271030417,-30000.0,0.00045,120]
[406910706,1772271030462,-10000.0,0.00045,120]
[406910707,1772271030506,-10000.0,0.00045,120]
[406910708,1772271030549,-10000.0,0.00045,120]
[406910709,1772271030593,-10000.0,0.00045,120]
[406910710,1772271030633,-10000.0,0.00045,120]
[406910711,1772271030675,-10000.0,0.00045,120]
[406910712,1772271030717,-6104.98933103,0.00045,30]
[406910713,1772271030760,-168.0,0.00045,30]
[406910714,1772271030802,-2500.0,0.00045,120]
[406910715,1772271030843,-200.0,0.00045,120]
[406910716,1772271030885,-5000.0,0.00045,120]
[406910717,1772271030928,-150000.0,0.00045,120]
[406910718,1772271030968,-1613669.40709846,0.00045,120]
[406910719,1772271031008,-1000.03,0.00045,120]
[406910720,1772271031046,-6250.0,0.00045,30]
[406910721,1772271031086,-51021.42450595,0.00045,120]
[406910722,1772271031125,-119999.999997,0.00045,30]
[406910723,1772271031165,-3219.06,0.00045,30]
[406910724,1772271031205,-682.16,0.00045,120]
[406910725,1772271031245,-150.51,0.00045058,120]
[406910726,1772271031285,-435.0,0.00045069,90]
[406910727,1772271031329,-150.51,0.00045158,120]
[406910728,1772271031372,-1081.42,0.00045181,120]
[406910729,1772271031414,-999.0,0.00045205,120]
[406910730,1772271031456,-150.51,0.00045258,120]
[406910731,1772271031497,-737.29006656,0.00045295,120]
[406910732,1772271031537,-151.33353311,0.00045303,60]
[406910733,1772271031578,-150.51,0.00045358,120]
[406910734,1772271031618,-435.0,0.00045399,90]
[406910735,1772271031659,-563.06,0.00045414,120]
[406910736,1772271031701,-150.51,0.00045458,120]
[406910737,1772271031740,-233.55,0.0004546,120]
[406910744,1772271031780,-716.27,0.000455,120]
[406910754,1772271031822,-150.51,0.00045558,120]
[406910761,1772271031863,-1313.82,0.00045577,30]
[406910768,1772271031909,-150.51,0.00045658,120]
[406910775,1772271031950,-199.44679002,0.000457,90]
[406910782,1772271031991,-150.51,0.00045758,120]
[406910787,1772271032033,-1081.42,0.00045779,120]
[406910788,1772271032073,-2659.969523,0.000458,120]
[406910790,1772271032117,-150.51,0.00045858,120]
[406910796,1772271032161,-333.82738796,0.00045869,30]
[406910797,1772271032205,-151.33353311,0.00045912,60]
[406910798,1772271032249,-420.3559325,0.00045947,30]
[406910799,1772271032290,-150.51,0.00045958,120]
[406910800,1772271032328,-10000.0,0.00046,120]
[406910801,1772271032367,-10000.0,0.00046,120]
[406910802,1772271032406,-10000.0,0.00046,120]
[406910803,1772271032445,-10000.0,0.00046,120]
[406910804,1772271032485,-2500.0,0.00046,120]
[406910805,1772271032525,-7282.5660647,0.00046,120]
[406910806,1772271032562,-120430.83399298,0.00046,30]
[406910807,1772271032600,-752.09,0.00046,120]
[406910808,1772271032640,-150.51,0.00046058,120]
[406910809,1772271032680,-150.51,0.00046158,120]
[406910810,1772271032719,-387.38106,0.000462,120]
[406910811,1772271032759,-213.7757,0.000462,120]
[406910812,1772271032801,-3834.21418384,0.00046253,30]
[406910813,1772271032842,-150.51,0.00046258,120]
[406910814,1772271032882,-725.66,0.00046305,120]
[406910815,1772271032925,-626.25,0.00046305,120]
[406910816,1772271032967,-14987.06,0.00046305,120]
[406910817,1772271033007,-150.51,0.00046358,120]
[406910818,1772271033048,-1081.42,0.00046377,120]
[406910819,1772271033088,-493797.98806004,0.0004644,30]
[406910820,1772271034422,-181.59853856,0.00011295,2]
[406910821,1772271034432,-579.0,0.00011295,2]
[406910822,1772271034441,-500.0,0.00011594,2]
[406910823,1772271034450,-663.72720635,0.00011677,2]
[406910824,1772271034459,-7927.16773716,0.00013,2]
[406910825,1772271034471,-2368.96921574,0.00013,2]
[406910826,1772271034480,-300.0,0.00013259,2]
[406910827,1772271034489,-300.0,0.00013259,2]
[406910828,1772271034499,-300.0,0.00013259,2]
[406910829,1772271034510,-500.0,0.00013273,2]
[406910830,1772271034519,-500.0,0.00013273,2]
[406910831,1772271034528,-463.15738854,0.00013273,2]
[406910832,1772271034537,-500.0,0.00013273,2]
[406910833,1772271034546,-500.0,0.00013273,2]
[406910834,1772271034556,-500.0,0.00013273,2]
[406910835,1772271034565,-500.0,0.00013273,2]
[406910836,1772271034574,-146.4662583,0.00013273,2]
[406911114,1772271040710,-353.5337417,0.00013273,2]
[406911116,1772271040719,-115.54496779,0.00013295,2]
[406911118,1772271040730,-98.74130771,0.00013295,2]
[406911120,1772271040739,-639.92472353,0.00013408,2]
[406911662,1772271046303,-1497.01549031,0.00013408,2]
[406911664,1772271046315,-493.38787287,0.00013408,2]
[406911666,1772271046324,-500.0,0.0001344,2]
[406911668,1772271046333,-1327.38942702,0.00013598,2]
[406911669,1772271046343,-947.96759449,0.00013598,2]
[406911671,1772271046352,-947.96759449,0.00013667,2]
[406911673,1772271046362,-300.0,0.00013673,2]
[406911675,1772271046372,-500.0,0.00013698,2]
[406911676,1772271046381,-500.0,0.00013698,2]
[406911678,1772271046391,-500.0,0.00013698,2]
[406911680,1772271046401,-500.0,0.00013698,2]
[406911682,1772271046410,-500.0,0.00013698,2]
[406911684,1772271046420,-500.0,0.00013698,2]
[406911685,1772271046429,-500.0,0.00013698,2]
[406911687,1772271046439,-500.0,0.00013698,2]
[406911689,1772271046450,-500.0,0.00013698,2]
[406911691,1772271046459,-500.0,0.00013698,2]
[406911693,1772271046468,-500.0,0.00013698,2]
[406911694,1772271046478,-500.0,0.00013698,2]
[406911696,1772271046487,-500.0,0.00013698,2]
[406911698,1772271046496,-500.0,0.00013698,2]
[406911699,1772271046505,-542.06,0.00013698,2]
[406911701,1772271046514,-500.0,0.00013698,2]
[406911703,1772271046524,-500.0,0.00013698,2]
[406911705,1772271046533,-500.0,0.00013698,2]
[406911707,1772271046542,-500.0,0.00013698,2]
[406911709,1772271046554,-500.0,0.00013698,2]
[406911711,1772271046563,-500.0,0.00013698,2]
[406911712,1772271046572,-500.0,0.00013698,2]
[406911714,1772271046582,-500.0,0.00013698,2]
[406911716,1772271046591,-500.0,0.00013698,2]
[406911718,1772271046601,-500.0,0.00013698,2]
[406911719,1772271046610,-500.0,0.00013698,2]
[406911721,1772271046619,-210.93777395,0.00013698,2]
[406911725,1772271046639,-289.06222605,0.00013698,2]
[406911727,1772271046648,-500.0,0.00013698,2]
[406911729,1772271046658,-500.0,0.00013698,2]
[406911731,1772271046668,-500.0,0.00013698,2]
[406911733,1772271046677,-499.98,0.00013698,2]
[406911734,1772271046686,-500.0,0.00013698,2]
[406911736,1772271046695,-915.36,0.00013698,2]
[406911738,1772271046704,-500.0,0.00013698,2]
[406911740,1772271046714,-500.0,0.00013698,2]
[406911742,1772271046723,-500.0,0.00013698,2]
[406911744,1772271046732,-500.0,0.00013698,2]
[406911746,1772271046742,-500.0,0.00013698,2]
[406911748,1772271046751,-500.0,0.00013698,2]
[406911749,1772271046761,-500.0,0.00013698,2]
[406911751,1772271046770,-500.0,0.00013698,2]
[406911753,1772271046780,-317.36974603,0.00013698,2]
[406911755,1772271046792,-182.63025397,0.00013698,2]
[406911757,1772271046801,-500.0,0.00013698,2]
[406911759,1772271046810,-500.0,0.00013698,2]
[406911761,1772271046819,-500.0,0.00013698,2]
[406911762,1772271046828,-500.0,0.00013698,2]
[406911763,1772271046838,-500.0,0.00013698,2]
[406911765,1772271046847,-500.0,0.00013698,2]
[406911766,1772271046857,-500.0,0.00013698,2]
[406911768,1772271046867,-500.0,0.00013698,2]
[406911770,1772271046876,-500.0,0.00013698,2]
[406911771,1772271046885,-500.0,0.00013698,2]
[406911772,1772271046894,-500.0,0.00013698,2]
[406911773,1772271046904,-500.0,0.00013698,2]
[406911774,1772271046914,-500.0,0.00013698,2]
[406911775,1772271046924,-500.0,0.00013698,2]
[406911776,1772271046933,-500.0,0.00013698,2]
[406911777,1772271046942,-500.0,0.00013698,2]
[406911778,1772271046952,-500.0,0.00013698,2]
[406911779,1772271046962,-500.0,0.00013698,2]
[406911780,1772271046971,-500.0,0.00013698,2]
[406911781,1772271046981,-608.03,0.00013698,2]
[406911782,1772271046991,-500.0,0.00013698,2]
[406911783,1772271047000,-168.6354628,0.00013698,2]
[406911784,1772271047010,-500.0,0.00013698,2]
[406911786,1772271047019,-500.0,0.00013698,2]
[406911788,1772271047029,-500.0,0.00013698,2]
[406911790,1772271047038,-500.0,0.00013698,2]
[406911791,1772271047048,-500.0,0.00013698,2]
[406911793,1772271047060,-500.0,0.00013698,2]
[406911795,1772271047069,-500.0,0.00013698,2]
[406911796,1772271047079,-500.0,0.00013698,2]
[406911798,1772271047089,-500.0,0.00013698,2]
[406911799,1772271047099,-500.0,0.00013698,2]
[406911800,1772271047109,-500.0,0.00013698,2]
[406911802,1772271047118,-500.0,0.00013698,2]
[406911804,1772271047127,-500.0,0.00013698,2]
[406911806,1772271047137,-500.0,0.00013698,2]
[406911807,1772271047147,-500.0,0.00013698,2]
[406911809,1772271047157,-204.92919964,0.00013698,2]
[406911847,1772272003215,2131.971334,0.000158,120]
[406911848,1772272209153,150.73,9.5e-05,2]
[406911849,1772272224940,5000.0,9.501e-05,2]
[406911875,1772272232224,-1592.7625988,9.569e-05,2]
[406911877,1772272232233,-150.0,9.569e-05,2]
[406911879,1772272232242,-554.0,9.569e-05,2]
[406911880,1772272232251,-150.73,9.8e-05,2]
[406911883,1772272232260,-5000.0,9.882e-05,2]
[406911884,1772272232269,-200.0,9.949e-05,2]
[406911886,1772272232277,-1200.0,9.981e-05,2]
[406911889,1772272232287,-300.0,0.00010081,2]
[406911891,1772272232296,-148.65361822,0.00010081,2]
[406911924,1772272233203,3169.66738973,9.501e-05,2]
[406911966,1772272238445,-151.34638178,0.00010081,2]
[406911968,1772272238454,-300.0,0.00010081,2]
[406911970,1772272238466,-300.0,0.00010081,2]
[406911972,1772272238476,-150.73,0.000101,2]
[406911974,1772272238486,-4654.3712335,0.00010185,2]
[406911976,1772272238497,-150.73,0.000105,2]
[406911978,1772272238506,-260.6655134,0.00010859,2]
[406911980,1772272238516,-300.0,0.00010909,2]
[406911982,1772272238524,-300.0,0.00010909,2]
[406911984,1772272238533,-300.0,0.00010909,2]
[406911986,1772272238542,-300.0,0.00010909,2]
[406911988,1772272238551,-300.0,0.00010909,2]
[406911990,1772272238559,-300.0,0.00010909,2]
[406911992,1772272238568,-300.0,0.00010909,2]
[406911993,1772272238577,-300.0,0.00010909,2]
[406911995,1772272238585,-300.0,0.00010909,2]
[406911997,1772272238594,-300.0,0.00010909,2]
[406911999,1772272238603,-300.0,0.00010909,2]
[406912002,1772272238612,-300.0,0.00010909,2]
[406912004,1772272238621,-300.0,0.00010909,2]
[406912006,1772272238630,-300.0,0.00010909,2]